Workbook

Sheet Summary
A2: SUMMARY
A3: SECTION | B3: DESCRIPTION | C3: AMOUNT
A5: SECTION 1 | B5: PRELIMINARY AND GENERAL
A7: SECTION 2 | B7: REPAIRS TO 560MM RISING MAIN
B8: SECTION 2A: EARTHWORKS (PIPE TRENCHES) - SANS 1200DB | C8: ='S2 - Repairs to 560mm Pipeline'!G56 -> 0
B10: SECTION 2B: MEDIUM PRESSURE PIPELINES - SANS 1200L | C10: ='S2 - Repairs to 560mm Pipeline'!G136 -> 0
A12: SECTION 3 | B12: VALVE CHAMBERS | C12: ='S3 - Valve Chambers'!G111 -> 0
A14: [a] SUB-TOTAL 1 (SECTION 1+2+3) | C14: =SUM(C5:C12) -> 0
A16: [b] COMPLIANCE WITH CIDB B.U.I.I.D STANDARDS
B17: Allow Amount Contract Participation Goals (CPG) @ 5% of the Contract Amount [5% x (a)] = | C17: =C14*0.05 -> 0
B19: Allow Amount Contract Skills Development Goals (CSDG) @ 0.25% of the Contract Amount [0.25% x (a)] = | C19: =C14*0.25/100 -> 0
A21: [c] SUB-TOTAL 2 (SUB-TOTAL 1 + CPG + CSDG) | C21: =SUM(C14:C19) -> 0
A23: [d] CONTRACT PRICE ADJUSTMENT (CPA) (5% of [c]) | C23: =C21*0.05 -> 0
A24: [c] CONTINGENCIES (5% of [e]) | C24: =C21*0.05 -> 0
A25: [f] SUB-TOTAL 3 (c] + [d] + [e]) | C25: =SUM(C21:C24) -> 0
A26: [g] VAT (15% of [f]) | C26: =C25*15% -> 0
A27: TOTAL CARRIED TO FORM OF OFFER AND ACCEPTANCE ([f] + [g]) | C27: =C25+C26 -> 0

Sheet S1 - P & G
A1: SECTION 1: PRELIMINARY & GENERAL -SANS 1200A / 1200AB
A2: ITEM No | B2: PAYMENT REF | C2: DESCRIPTION | D2: UNIT | E2: QTY | F2: RATE | G2: AMOUNT
B3: SANS1200
A4: 1.1 | B4: PSA 8.3 | C4: Scheduled Fixed-Time Charge & Value Related Items
A5: 1.1.1 | B5: PSA 8.3.1 | C5: Fixed Preliminary and Genaral charges | D5: Sum | E5: 1.00
B6: SANS 1200AB
A7: 1.1.2 | B7: PSAB | C7: Establishing Facilities for Engineer | D7: Sum | E7: 1.00
B9: SANS 1200A
B10: 8.3.2.2 | C10: Facilities for Contractor
A11: 1.1.3 | B11: 8.3.2.1 c) | C11: Nameboards | D11: Sum | E11: 1.00
A12: 1.1.4 | B12: a) | C12: Offices and Storage Sheds | D12: Sum | E12: 1.00
A13: 1.1.5 | B13: b) | C13: Workshops | D13: Sum | E13: 1.00
A14: 1.1.6 | B14: c) | C14: Laboratories | D14: Sum | E14: 1.00
A15: 1.1.7 | B15: d) | C15: Living Accomodation | D15: Sum | E15: 1.00
A16: 1.1.8 | B16: e) | C16: Ablution and latrine facilities | D16: Sum | E16: 1.00
A17: 1.1.9 | B17: f) | C17: Tools and Equipment | D17: Sum | E17: 1.00
A18: 1.1.10 | B18: PSA 8.3.2 | C18: Plant (All required plant for the duration of the project) | D18: Sum | E18: 1.00
A19: 1.1.11 | B19: 8.3.3 | C19: Other Fixed charge Obligations | D19: Sum | E19: 1.00
A20: 1.1.12 | B20: 8.3.4 | C20: Removal of Site Establishment | D20: Sum | E20: 1.00
B22: SANS 1200A
A23: 1.2 | B23: PSA 8.4 | C23: Scheduled Time Related Items
A24: 1.2.1 | B24: PSA 8.4.1 | C24: Time Related Preliminary and General charges | D24: Sum | E24: 1.00
A25: 1.2.2 | B25: 8.4.2.1 | C25: Facilities for Engineer | D25: Sum | E25: 1.00
A26: 1.2.3 | B26: 8.4.2.2 | C26: Facilities for Contractor
A27: 1.2.4 | B27: a) | C27: Offices and Storage Sheds | D27: Sum | E27: 1.00
A28: 1.2.5 | B28: b) | C28: Workshops | D28: Sum | E28: 1.00
A29: 1.2.6 | B29: c) | C29: Laboratories | D29: Sum | E29: 1.00
A30: 1.2.7 | B30: d) | C30: Living Accommodation | D30: Sum | E30: 1.00
A31: 1.2.8 | B31: e) | C31: Ablution & Latrines | D31: Sum | E31: 1.00
A32: 1.2.9 | B32: f) | C32: Tools and Equipment | D32: Sum | E32: 1.00
A33: 1.2.10 | B33: g) | C33: Water Suppliers, Electricity and Communications | D33: Sum | E33: 1.00
A34: 1.2.11 | B34: h) | C34: Dealing With Water | D34: Sum | E34: 1.00
A35: 1.2.12 | B35: 8.4.3 | C35: Supervision for Project Duration | D35: Sum | E35: 1.00
A36: 1.2.13 | B36: 8.4.4 | C36: Company Costs & Overheads | D36: Sum | E36: 1.00
A37: 1.2.14 | B37: 8.4.5 | C37: Other Time Related Obligations | D37: Sum | E37: 1.00
A39: 1.2.7 | B39: PSA 8.4.5.1 | C39: Supervision and Training of Nominated Sub-contractors | D39: Sum | E39: 1.00
A40: 1.2.8 | B40: PSA 8.4.5.2 | C40: Salary for Labour Desk office and Community Liaison officer | D40: Sum | E40: 1.00
A41: 1.2.9 | B41: PSA 8.4.5.3 | C41: Artisans and Skills accredited Training | D41: Sum | E41: 1.00 | N41: V.O. 1 | O41: =#REF! ->  | P41: Biznet | Q41: R1,000,000.00
A42: 1.2.10 | B42: PSA 8.9 | C42: Full compliance wih the environmental management plan (EMP) | D42: Sum | E42: 1.00 | N42: V.O. 2 | O42: =#REF! ->  | P42: Aubrey | Q42: R300,000.00
A43: 1.2.11 | B43: PSA 8.8 | C43: Full Compliance with all Health and Safety regulations and specifications | D43: Sum | E43: 1.00 | N43: V.O. 3 | O43: =#REF! ->  | P43: Aubrey | Q43: R300,000.00
A44: 1.3 | B44: PSA 8.5 | C44: Sums Stated Provisionally by Engineer | O44: =SUM(O41:O43) ->  | Q44: =SUM(Q41:Q43) -> R1,600,000.00
A45: 1.3.1 | B45: PSA 8.5.1 | C45: Cellular communications and data bundles | D45: Prov Sum | E45: 1.00 | F45: R24,000.00 | G45: =E45*F45 -> R24,000.00
A46: 1.3.2 | B46: PSA 8.5.1 | C46: Supply of computer, printer and associated equipment to become property of the Engineer at the end of the Contract | D46: Prov Sum | E46: 1.00 | F46: R45,000.00 | G46: =E46*F46 -> R45,000.00
A47: 1.3.3 | B47: PSA 8.6 (a) | C47: Relocation of Existing Services (inclusive all Discussions, Liaison, Labour and Material) | D47: Prov Sum | E47: 1.00 | F47: =G47 -> R150,000.00 | G47: R150,000.00
A48: 1.3.6 | B48: PSA 8.6 (b) | C48: Percentage (%) mark-up on item 1.3.1 to 1.3.3 above for Contractor's overheads, administration charges and profit | D48: % | F48: =SUM(F45:F47) -> R219,000.00 | G48: =F48*E48/100 -> 0
A50: 1.4 | B50: PSA 8.6 | C50: Prime Cost Sums
A51: 1.4.1 | B51: PSA 8.6 (a) | C51: Community Liaison Officers (CLO) | D51: PC Sum | E51: 1.00 | F51: R360,000.00 | G51: =F51*E51 -> R360,000.00
A52: 1.4.2 | B52: PSA 8.6 (a) | C52: Construction Specialist Services (On instruction by LNW) | D52: PC Sum | E52: 1.00 | F52: R1,000,000.00 | G52: =F52 -> R1,000,000.00
A53: 1.4.3 | B53: PSA 8.6 (b) | C53: Percentage (%) mark-up on item 1.4.1 to 1.4.2 above for Contractor's overheads, administration charges and profit | D53: % | F53: =SUM(F51:F52) -> R1,360,000.00 | G53: =F53*E53/100 -> 0
A55: 1.5 | C55: Allowance for Contractor's Designs & Construction Drawings
A56: 1.5.1 | C56: Contractor to allow for Contractor's Designs and Construction Drawings inc Shop Drawings for the entire project, c/w sign off by a registered professional with a valid Professional Indemnity. | D56: Sum | E56: 1.00 | G56: =F56*E56 -> 0
A58: Carried Forward
A59: Brought Forward | G59: =G58 -> 0
A61: 1.6 | B61: PSA 8.7 | C61: (a) Day Works Using The Contractor's Labour force
A62: 1.6.1 | C62: 1. Labourer | D62: hour | E62: 200.00 | G62: =F62*E62 -> 0
A63: 1.6.2 | C63: 2. Driver | D63: hour | E63: 200.00 | G63: 0
A64: 1.6.3 | C64: 3. Operator | D64: hour | E64: 200.00 | G64: 0
A65: 1.6.4 | C65: 4. Artisan | D65: hour | E65: 200.00 | G65: 0
A66: 1.6.5 | C66: 5. Welder | D66: hour | E66: 200.00 | G66: 0 | I66: =4069.92+4069.92+4069.92 -> 12209.76 | J66: =2543.7+2543.7+2543.7 -> 7,631.10 | K66: =I66+J66 -> 19,840.86 | L66: =K66/F66 -> 
A67: 1.6.6 | C67: 6. Foreman | D67: hour | E67: 200.00 | G67: 0 | I67: =10162.38+10162.38+10162.38 -> 30487.14 | J67: =6251.48+6351.48+6351.48 -> 18,954.44 | K67: 49,441.58 | L67: =K67/F67 -> 
A68: 1.6.7 | C68: 7. Security Guard | D68: day | E68: 200.00 | G68: 0 | K68: 0 | L68: =K68/F68 -> 
A69: 1.6.8 | C69: Medicals entry & Exit | D69: SUM | E69: 1.00 | G69: 0
A70: 1.6.9 | C70: PPE | D70: SUM | E70: 1.00 | G70: 0
A71: 1.6.10 | C71: Training | D71: SUM | E71: 1.00 | G71: 0
A73: 1.7 | B73: PSA 8.7 | C73: (b) Day Works Using Contractor's Plant | G73: 0 | K73: 0
A74: 1.7.1 | C74: 1. Ldv (1 ton) | D74: hour | E74: 200.00 | G74: 0 | I74: 6057.6 | J74: 3,786.00 | K74: 9,843.60 | L74: =K74/F74 -> 
A75: 1.7.2 | C75: 2. Flat Truck (3 to 5 ton) | D75: hour | E75: 50.00 | G75: 0 | K75: 0
A76: 1.7.3 | C76: 3. Tip Truck (10m3) | D76: hour | E76: 50.00 | G76: 0 | K76: 0
A77: 1.7.4 | C77: 4. Backhoe | D77: hour | E77: 50.00 | G77: 0 | I77: 36961.27 | J77: 23,100.79 | K77: 60,062.06
A78: 1.7.5 | C78: 4. Backhoe | D78: hour | E78: 50.00 | G78: 0 | K78: 0
A79: 1.7.6 | C79: 5. Trench Vibrating Roller | D79: hour | E79: 50.00 | G79: 0 | K79: 0
A80: 1.7.7 | C80: 7. Air compressor, including all tools (Drills, Jackhammers, etc) | D80: hour | E80: 50.00 | G80: 0 | K80: 0
A81: 1.7.8 | C81: 8. Pump, including all Necessary Hosing and Pipes | D81: hour | E81: 200.00 | G81: 0 | I81: 1003.36 | J81: 627.10 | K81: 1,630.46
A82: 1.7.9 | C82: 9. Concrete Mixer | D82: hour | E82: 20.00 | G82: 0 | K82: 0
A83: 1.7.10 | C83: 10. Water Truck (10 000 L) | D83: hour | E83: 50.00 | G83: 0 | K83: 0
A84: 1.7.11 | C84: 11. Welding Machine | D84: hour | E84: 200.00 | G84: 0 | I84: 5666.28 | J84: 3,541.43 | K84: 9,207.71
A85: 1.7.12 | C85: 12. Flood Lights | D85: hour | E85: 200.00 | G85: 0 | I85: 2520 | J85: 1,575.00 | K85: 4,095.00
A86: 1.7.13 | C86: 13. Staff Bus | D86: hour | E86: 200.00 | G86: 0
A104: Total Section 1 Carried to Summary

Sheet S2 - Repairs to 560mm Pipeline
A1: SECTION 2: WORKS TO 560MM PIPELINE
A2: SECTION 2A: EARTHWORKS (PIPE TRENCHES) - SANS 1200DB
A3: ITEM No | B3: PAYMENT REF | C3: DESCRIPTION | D3: UNIT | E3: QTY | F3: RATE | G3: AMOUNT
A4: A1 | B4: 8.3.1 | C4: Site Clearance
A5: A1.1 | B5: 8.3.1 (a) | C5: Clear Vegetation and Trees of Girth Up to 1m (4m Wide Strip) | D5: m | E5: 9,520.00 | G5: =F5*E5 -> 0
A6: A1.2 | B6: 8.3.1 (b) | C6: Clear Trees of Girth Over 1,0 m and Designated Obstacles | D6: No | E6: 9.00 | G6: =F6*E6 -> 0
A7: A1.3 | B7: PSDB. 8.3.1 (c) | C7: Remove topsoil (strip to 150 mm Deep x 1.5m wide), Stockpile, Prevent Dust Nuisance and Reinstate on Upon Completion | D7: m² | E7: 7,000.00 | G7: =F7*E7 -> 0
A8: A2 | B8: 8.3.2 | C8: Excavation | G8: 0
B9: 8.3.2 (a) | C9: Excavate in all Materials for Trenches, Backfill, Compact and Dispose of Surplus Material with Depth Over and Up to: | G9: 0
A10: A2.1 | C10: 1.0 m 2.0 m | D10: m3 | E10: 12,000.00 | G10: 0
A11: A2.2 | C11: 2.0 m 3.0 m | D11: m3 | E11: 4,000.00 | G11: 0
B13: PSDB. 8.3.2 | C13: Extra-over Item (a) above for: | G13: 0
A14: A2.6 | B14: 8.3.2 (b) (2) | C14: Hard Rock Excavation | D14: m³ | E14: 100.00 | G14: 0
A15: A2.7 | B15: PSDB. 8.3.2 | C15: Excavate and Dispose of Boulders Class A | D15: m³ | E15: 50.00 | G15: 0
A16: A2.8 | B16: 8.3.2 (c) | C16: Excavate and Dispose of Unsuitable Material From Trench Bottom (provisional) | D16: m³ | E16: 100.00 | G16: 0
A17: A3 | B17: 8.3.3 | C17: Excavation ancillaries | G17: 0
B18: 8.3.3.1 | C18: Make Up Deficiency in Backfill Material (provisional) | G18: 0
A19: A3.1 | B19: a) | C19: From Other Necessary Excavations On Site | D19: m³ | E19: 500.00 | G19: 0
B20: 8.3.3.3. | C20: Compaction in Road Reserves
A21: A3.2 | C21: Under roadways to 93% MOD AASHTO | D21: m³ | E21: 100.00 | G21: 0
A23: A4 | B23: 8.3.5 | C23: Existing Services that intersect or adjoin Pipe Trench | G23: 0
A24: A4.1 | B24: 8.3.5 (a) | C24: Services That intersect a Trench | G24: 0
A25: A4.1.1 | C25: 1) Stock Fences | D25: No | E25: 5.00 | G25: 0
A26: A4.1.2 | C26: 2) Storm Water Pipes | D26: No | E26: 1.00 | G26: =F26*E26 -> 0
A27: A4.1.3 | C27: 3) Water Pipes | D27: No | E27: 2.00 | G27: 0
A28: A4.1.4 | C28: 4) Overhead Electrical Lines | D28: No | E28: 3.00 | G28: 0
A29: A4.1.5 | C29: 5) Overhead Telephone Lines | D29: No | E29: 2.00 | G29: 0
A30: A4.1.6 | C30: 6) Gravel Roads | D30: No | E30: 5.00 | G30: 0
A31: A4.2 | B31: 8.3.5 (b) | C31: Services That adjoin a Trench | G31: 0
A32: A4.2.1 | C32: 1) Stock Fence | D32: m | E32: 1,000.00 | G32: 0
A33: A4.2.2 | C33: 2) Water / Storm Water Pipes | D33: m | E33: 9,500.00 | G33: =F33*E34 -> 0
A34: A4.2.3 | C34: 3) Overhead Electrical Lines | D34: m | E34: 1,000.00 | G34: =F34*E35 -> 0
A35: A4.2.4 | C35: 4) Overhead Telephone Lines | D35: m | E35: 30.00 | G35: 0
A37: A5 | B37: 8.3.6 | C37: Finishing | G37: 0
A38: A5.1 | B38: 8.3.6.1 | C38: Reinstate Road Surfaces Complete | G38: 0
A39: A5.1.1 | B39: 8.3.6.1 (a) | C39: Gravel Road Surfaces | D39: m² | E39: 100.00 | G39: 0
A40: A5.1.2 | B40: 8.3.6.1 (b) | C40: Tarred Road Surfaces (30mm thick) | D40: m² | E40: 20.00 | G40: 0
A42: A6 | B42: PSDB 8.3.7 | C42: Accommodation of traffic including bypass and signage | D42: Sum | E42: 1.00 | G42: 0
A56: SECTION 2A CARRIED TO SUMMARY : EARTHWORKS (PIPE TRENCHES) - SANS 1200DB | G56: =SUM(G5:G50) -> 0
A58: SECTION 2B: PIPELINES - SANS 1200L
A60: B1 | C60: Pipeline Section Replacement
A61: B1.1 | B61: 8.2.1 | C61: Steel Pipes
A62: B1.1.1 | C62: Supply, Lay, Bed, Join and Test 560 ND / 6 mm Wall Thickness Grade X42 Steel Pipes, Pipes are to be continously Welded with Coating and Lining as per PSCL Specifications | D62: m | E62: 2,000.00 | G62: =F62*E62 -> 0
A64: B1.2 | B64: 8.2.2 | C64: Steel Bends | G64: 0
A65: B1.2.1 | C65: Extra-Over for Item B1.1.1 to Supply, Lay, Join, Test and Bed 560 mm ND / 6 mm Wall Thickness Grade X42 Steel Bends with Lining and Coating as per specifications. | G65: 0
A66: B1.2.1.1 | C66: 0º - 5º | D66: No | E66: 8.00 | G66: 0
A67: B1.2.1.2 | C67: 5º - 15º | D67: No | E67: 5.00 | G67: 0
A68: B1.2.1.3 | C68: 15º - 45º | D68: No | E68: 5.00 | G68: 0
A69: B1.2.1.4 | C69: 45º - 60º | D69: No | E69: 5.00 | G69: 0
A70: B1.2.1.5 | C70: 60º - 90º | D70: No | E70: 5.00 | G70: 0
A72: B2 | C72: Pipeline Repairs
A73: B2.1 | C73: Pipe Pieces
A74: B2.1.1 | C74: Supply, Lay, Join, Test and Bed 560 mm ND / 6 mm Wall Thickness Grade X42 straight Steel pipe piece, 750mm long, c/w stacker rings welded either end (Stackers = 584mm O/D x 10mm thisck x 50mm wide) both ends suitable for welding to replace the couplings with Lining and Coating as per PSCL specifications. Pipe pieces to be specially manufactured to specifed size before delivery to site, ordering a longer section and cutting on site will not be accepted.
A75: B2.1.1.1 | C75: 750mm Long, Pipe Pieces (560mm ND ), with factory welded stacker rings, 10mm thick x 50mm Wide | D75: No | E75: 1,100.00
A76: B2.1.1.2 | C76: Stacker Rings, 584 O/D x 6mm thick x 100mm wide (to be weld on existing pipe on site) | D76: No | E76: 2,200.00
A77: B2.1.1.3 | C77: Site Weld Sleeves\collar, 598mm O/D x 6mm Thick x 100mm wide | D77: No | E77: 2,200.00
A79: B3 | C79: Cut-in and Connect to Existing Water infrastructure within Stipulated Time Frame including all Pipework as Specified. Inclusive for both Start and End points. | D79: Sum | E79: 1.00
A81: B4 | C81: Radiographic Examination and Testing of Pipe Welded Joints | D81: No | E81: 250.00
A83: B5 | C83: Provide Pipeline Markers along The Pipeline Route | D83: No | E83: 10.00
A94: SECTION 2B CARRIED TO SUMMARY : PIPELINES - SANS 1200L | G94: =SUM(G62:G78) -> 0
A98: SECTION 2C: BEDDING - SANS 1200LB
A100: C1 | B100: 8.2.1 | C100: Provision of Bedding from Trench Excavation
A101: C1.1 | C101: a) Selected granular material | D101: m³ | E101: 100.00 | G101: =F101*E101 -> 0
A102: C1.2 | C102: b) Selected fill material | D102: m³ | E102: 600.00 | G102: 0
A104: C2 | B104: 8.2.2 | C104: Supply only of Bedding By Importation
A105: B1.2.1 | B105: 8.2.2.3 | C105: From Commercial Sources
A106: B1.2.1.1 | C106: a) Selected Granular Material | D106: m³ | E106: 3,300.00 | G106: =F106*E106 -> 0
A107: B1.2.1.2 | C107: b) Selected Fill Material | D107: m³ | E107: 100.00 | G107: 0
A136: SECTION 2B CARRIED TO SUMMARY : BEDDING - SANS 1200LB | G136: =SUM(G102:G117) -> 0

Sheet S3 - Valve Chambers
A1: SECTION 3: VALVE CHAMBERS
A2: B4 | C2: VALVE CHAMBERS
A3: B4.1 | C3: Demolition of Existing Chambers
A4: B4.1.1 | C4: Demolish Air Valve Chambers Servicing 560mm Pipeline, incl safe disposal of rubble | D4: No | E4: 15.00 | G4: =F4*E4 -> 0
A5: B4.1.2 | C5: Demolish Air Isolation Valve & Non Return Valve Chambers Servicing 560mm Pipeline, incl safe disposal of rubble | D5: No | E5: 4.00 | G5: =F5*E5 -> 0
A7: B4.2 | C7: New Air Valve Chambers
A8: B4.2.1 | C8: Air Valve Chamber - PN25, Complete as Shown on TYPICAL DRAWING , Construction shop drawing to be finalised by Contractor. Construct Chambers around the pipe, Complete including Excavation, Reinforcement and Concrete Work, Supply Material and install Air Vents, access Ladders, relevant typical drawings attached as a guide, for The Following: Chamber depth = Fixed at 2m | D8: No | E8: 17.00 | G8: =F8*E8 -> 0
A9: B4.2.2 | C9: Extra Over B.4.2.1 for Pipe Specials as Per Typical drawing LNW 08/25/26 -AVC-01, final drawing to be finalised with Contractor,for Supply and installation of Air Valve Chamber pipeworks and specials
A10: B4.2.2.1 | B10: PSPM | C10: AV 1: 560mm X 350mm Unequal Tee, PN25 | D10: No | E10: 17.00 | G10: =F10*E10 -> 0
A11: B4.2.2.2 | B11: PSPM | C11: AV 2: 350mm Blank Flange with 150mm drilled opening with a 150mm Flanged Pipe Section,PN25 | D11: No | E11: 17.00 | G11: =F11*E11 -> 0
A12: B4.2.2.3 | B12: PSVA | C12: AV 3: 150mm RSV Gate Valve,PN25 | D12: No | E12: 17.00 | G12: 0
A13: B4.2.2.4 | B13: PSVA | C13: AV 4: 150mm Air Valve, PN25 | D13: No | E13: 17.00 | G13: 0
A14: B4.2.2.5 | B14: PSPM | C14: AV 4: 560mm Flanged Pipe Section, 1500mm Long, PN25 | D14: No | E14: 17.00 | G14: 0
A15: B4.2.2.6 | B15: PSPM | C15: AV 5: 560mm Straight pipe, both ends suitable for welding, with Paddle Flange, PN25 | D15: No | E15: =E10*2 -> 34.00 | G15: 0
A17: B4.3 | C17: Scour Valve Chambers
A18: B4.3.1 | C18: Scour Valve Chamber for PN25, Construct Chambers Complete including Excavation, Reinforcement and Concrete Work, Supply Material and install Air Vents, access Ladders, for The Following: Chamber depth = 3m | D18: No | E18: 3.00 | G18: 0
A19: B4.3.2 | C19: Extra Over B4.3.1 for Pipe Specials for The Scour Valve Chamber
A20: B4.3.2.1 | B20: PSPM | C20: CSV 1: 560mm X 350mm Unequal Tee, PN25 | D20: No | E20: 3.00 | G20: 0
A21: B4.3.2.2 | B21: PSPM | C21: CSV 2: 350mm NB Straight Section, both ends flanged with Paddle flange, PN25 | D21: No | E21: 3.00 | G21: 0
A22: B4.3.2.3 | B22: PSVA | C22: CSV 3: 350mm Wedge Gate Valve, PN25 | D22: No | E22: 3.00 | G22: =F22*E22 -> 0
A23: B4.3.2.4 | B23: PSVA | C23: CSV 4: 350mm Dismantling Coupling, PN25 | D23: No | E23: 3.00 | G23: 0
A24: B4.3.2.5 | B24: PSPM | C24: CSV 5: 350mm Straight Pipe paddle Flange, both ends flanged, PN25 | D24: No | E24: 3.00 | G24: 0
A25: B4.3.2.6 | B25: PSPM | C25: CSV 6: 560mm ND Existing Straight pipe Section | D25: No | E25: 1.00 | G25: 0
A27: B4.4 | C27: Isolation Valve Chambers
A28: B4.4.1 | C28: Isolation Valve Chamber for PN25, Construct Chambers Complete including Excavation, Reinforcement and Concrete Work, Supply Material and install Air Vents, access Ladders, for The Following: Chamber depth = 3.3m | D28: No | E28: 3.00 | G28: 0
A29: B4.4.2 | C29: Extra Over B4.4.1 for Pipe Specials as Per Drawing 'LNW 08/25/26-IVC-03 for The Isolation Valve Chamber Supply and install the following
A30: B4.4.2.1 | B30: PSPM | C30: IV 1: 560mm ND Straight Section, flanged one end, and weld on the other with Paddle flange, PN25 | D30: No | E30: 6.00 | G30: 0
A31: B4.4.2.2 | B31: PSPM | C31: IV 2: 560mm X 560mm x 100mm Unequal Tee, All ends Flanged, PN25 | D31: No | E31: 6.00 | G31: 0
A32: B4.4.2.3 | B32: PSVA | C32: IV 3: 550mm Butterfly Isolation Valve, PN25 | D32: No | E32: 3.00 | G32: 0
A33: B4.4.2.4 | B33: PSVA | C33: IV 4: 560mm Dismantling Joint, PN25 | D33: No | E33: 3.00 | G33: 0
A34: B4.4.2.5 | B34: PSPM | C34: IV 5: 100mm Medium Radius Bend, PN25 | D34: No | E34: 6.00 | G34: 0
A35: B4.4.2.6 | B35: PSVA | C35: IV 6: 100mm Wedge Gate Valve, PN25 | D35: No | E35: 3.00 | G35: 0
A36: B4.4.2.7 | B36: PSVA | C36: IV 7: 100mm Dismantling Joint, PN25 | D36: No | E36: 3.00 | G36: 0
A37: B4.4.2.8 | B37: PSPM | C37: IV 8: 100mm ND Straight Pipe Section, PN25 | D37: No | E37: 3.00 | G37: 0
A39: B4.5 | C39: Non Return Valve Chamber
A40: B4.5.1 | C40: Non Return Valve Chamber for PN25, Construct Chambers Complete including Excavation, Reinforcement and Concrete Work, Supply Material and install Air Vents, access Ladders, for The Following: Chamber depth = 3.3m | D40: No | E40: 1.00 | G40: =F40*E40 -> 0
A41: B4.5.2 | C41: Extra Over B4.5.1 for Pipe Specials Non Return Valve Chamber Supply and install the following
A42: B4.5.2.1 | B42: PSPM | C42: 560mm ND Straight Section, flanged one end, and weld on the other with paddle flange | D42: No | E42: 2.00 | G42: =F42*E42 -> 0
A43: B4.5.2.2 | B43: PSVA | C43: 560mm Nozzle Type Non Return Valve | D43: No | E43: 1.00 | G43: 0
A44: B4.5.2.3 | B44: PSVA | C44: 560mm Dismantling Joint | D44: No | E44: 1.00 | G44: 0
A46: B4.6 | C46: Other Valve Chambers
A47: B4.6.1 | C47: Relocation of PMC Juction (Junction 42) with all its valves and fittings to a new location, away from the wetland, including connections of all pipelines | D47: Prov Sum | E47: 1.00 | F47: R6,000,000.00 | G47: R1,000,000.00
A48: B4.6.2 | C48: New Pre-cast ring manhole for the Airvalve near the Phalaborwa WTP Guard House | D48: Prov Sum | E48: 1.00 | F48: R350,000.00 | G48: R1,000,000.00
A49: B4.6.3 | C49: Allow for overheads, charges and profits on item B4.6.1 to B4.6.2 above | D49: %
A54: Carried Forward
A55: Brought Forward
A57: B4.7 | C57: Refurbishment of Existing Valve Chambers (Those not being demolished)
A58: B4.7.1 | C58: Refurbishment of existing valves at Phalaborwa 560 Pipelineincluding the required modification of the pipe fittings | D58: Prov Sum | E58: 1.00 | F58: R1,000,000.00 | G58: R1,000,000.00
C59: Allow for overheads, charges and profits on item B4.7.1 above | D59: %
A61: B4.8 | C61: Anchor, Thrust Blocks, Plinths and Pedestals
A62: B4.8.1 | C62: Concrete Grade 15/19 | D62: m³ | E62: 30.00 | G62: =F62*E62 -> 0
A63: B4.8.2 | C63: Formwork (rough Vertical) | D63: m2 | E63: 120.00 | G63: 0
A64: B4.8.3 | C64: Steel Mesh Ref No 100 | D64: m2 | E64: 100.00 | G64: 0
A66: B4.9 | C66: General
A67: B4.9.1 | C67: Provide Pipeline Markers along The Pipeline Route | D67: No | E67: 50.00 | G67: =F67*E67 -> 0
A68: B4.9.2 | C68: Radiographic Examination and Testing of Pipe Welded Joints | D68: No | E68: 200.00 | G68: 0
A111: Total Section 3 Carried to Summary

Sheet OHS (hidden)
A1: OHS | H1: UNITS | K1: AMOUNTS
A2: ITEM No | B2: PAYMENT REF | C2: DESCRIPTION | D2: UNIT | E2: QTY | F2: RATE | G2: AMOUNT | H2: PREVIOUS | I2: CURRENT | J2: TOTAL | K2: PREVIOUS | L2: CURRENT | M2: TOTAL
B3: SANS 1200A | C3: SECTION 8: OHS COMPLIANCE
A4: 1.1 | B4: 8.3 | C4: FIXED CHARGE ITEMS
A5: 1.1.1 | B5: CR 7(1) (a). H&S Spec (10) | C5: 'Project specific SHE plan based on the H&S specification. | D5: Sum | E5: 1.00 | F5: R15,000.00 | G5: =F5*E5 -> R15,000.00 | H5: 1.00 | I5: =J5-H5 -> 0 | J5: 1.00 | K5: =H5*F5 -> R15,000.00 | L5: =I5*F5 -> 0 | M5: =J5*F5 -> R15,000.00
A6: 1.1.1.1 | B6: COIDA. H&S Spec (7) | C6: Workmen's compensation letter. | D6: Sum | E6: 1.00 | F6: R10,000.00 | G6: =F6*E6 -> R10,000.00 | H6: 1.00 | I6: =J6-H6 -> 0 | J6: 1.00 | K6: =H6*F6 -> R10,000.00 | L6: =I6*F6 -> 0 | M6: =J6*F6 -> R10,000.00
A7: 1.1.1.2 | B7: CR 4. H&S Spec (b) | C7: Notification of construction work | D7: Sum | E7: 1.00 | F7: R15,000.00 | G7: R15,000.00 | H7: 1.00 | I7: =J7-H7 -> 0 | J7: 1.00 | K7: =H7*F7 -> R15,000.00 | L7: =I7*F7 -> 0 | M7: =J7*F7 -> R15,000.00
A8: 4 | C8: Site Establishment | G8: 0 | H8: 0 | I8: 0 | J8: 0 | K8: 0 | L8: 0 | M8: 0
A9: 4.1 | C9: Fencing to the construction site ( 1.8m high) | D9: Sum | E9: 1.00 | F9: R35,000.00 | G9: R35,000.00 | H9: 1.00 | I9: 0 | J9: 1.00 | K9: R35,000.00 | L9: 0 | M9: R35,000.00
A10: 4.2 | C10: Hoarding with a green net (1.8m high) | D10: Sum | E10: 1.00 | F10: R10,000.00 | G10: R10,000.00 | H10: 1.00 | I10: 0 | J10: 1.00 | K10: R10,000.00 | L10: 0 | M10: R10,000.00
A11: 4.3 | C11: Site Clearance and waste disposal | D11: Sum | E11: 1.00 | F11: R15,000.00 | G11: R15,000.00 | H11: 1.00 | I11: 0 | J11: 1.00 | K11: R15,000.00 | L11: 0 | M11: R15,000.00
A12: 4.4 | B12: GSR 3(2). H&S Spec (z) | C12: First aid boxes | D12: No | E12: 5.00 | F12: R5,000.00 | G12: R25,000.00 | H12: 5.00 | I12: 0 | J12: 5.00 | K12: R25,000.00 | L12: 0 | M12: R25,000.00
A13: 4.5 | B13: GSR 4. BRA 15, 35. CR 29 | C13: Fire Extinguishers ( 7x9kgs and 3x5kgs) | D13: No | E13: 5.00 | F13: R2,000.00 | G13: R10,000.00 | H13: 5.00 | I13: 0 | J13: 5.00 | K13: R10,000.00 | L13: 0 | M13: R10,000.00
A14: 4.6 | B14: CR 30.BRA 2.H&S SPEC (u) | C14: Toilets ( 1 per 15 people, each toilet per gender) | D14: No | E14: 2.00 | F14: R40,000.00 | G14: R80,000.00 | H14: 2.00 | I14: 0 | J14: 2.00 | K14: R80,000.00 | L14: 0 | M14: R80,000.00
A15: 4.7 | B15: CR27 | C15: Waste bins ( Plastic overlapping waste bins 100L) | D15: No | E15: 4.00 | F15: R1,500.00 | G15: R6,000.00 | H15: 4.00 | I15: 0 | J15: 4.00 | K15: R6,000.00 | L15: 0 | M15: R6,000.00
A16: 4.8 | B16: CR30 | C16: Shadding net for an eating area ( Green net 5m long) | D16: No | E16: 3.00 | F16: R15,000.00 | G16: R45,000.00 | H16: 3.00 | I16: 0 | J16: 3.00 | K16: R45,000.00 | L16: 0 | M16: R45,000.00
B17: CR30 | C17: Benches for an eating area ( 4m long) | D17: No | E17: 5.00 | F17: 0 | G17: included | H17: 5.00 | I17: 0 | J17: 5.00 | K17: 0 | L17: 0 | M17: 0
A18: 4.2 | B18: H&S SPEC (g). CR 7(6). GSR 2 | C18: Personal Protective Equipment | G18: =F18*E18 -> 0 | H18: 0 | I18: 0 | J18: 0 | K18: 0 | L18: 0 | M18: 0
A19: 4.2.1 | C19: Overalls( Blue/Orange/Green) | D19: No | E19: 120.00 | F19: R500.00 | G19: =F19*E19 -> R60,000.00 | H19: 90.00 | I19: 0 | J19: 90.00 | K19: R45,000.00 | L19: 0 | M19: R45,000.00
A20: 4.2.2 | C20: Hard hats | D20: No | E20: 120.00 | F20: R150.00 | G20: R18,000.00 | H20: 90.00 | I20: 0 | J20: 90.00 | K20: R13,500.00 | L20: 0 | M20: R13,500.00
A21: 4.2.3 | C21: Boots | G21: 0 | H21: 90.00 | I21: 0 | J21: 90.00 | K21: 0 | L21: 0 | M21: 0
A22: 4.2.3.1 | C22: water boots | D22: No | E22: 120.00 | F22: R250.00 | G22: R30,000.00 | H22: 90.00 | I22: 0 | J22: 90.00 | K22: R22,500.00 | L22: 0 | M22: R22,500.00
A23: 4.2.3.2 | C23: Safety boots | D23: No | E23: 120.00 | F23: R325.00 | G23: R39,000.00 | H23: 90.00 | I23: 0 | J23: 90.00 | K23: R29,250.00 | L23: 0 | M23: R29,250.00
A24: 4.2.4 | C24: Gloves ( General and Skilled activities) | D24: No | E24: 120.00 | F24: R250.00 | G24: R30,000.00 | H24: 90.00 | I24: 0 | J24: 90.00 | K24: R22,500.00 | L24: 0 | M24: R22,500.00
A25: 4.2.5 | C25: Googles | D25: No | E25: 120.00 | F25: R50.00 | G25: R6,000.00 | H25: 90.00 | I25: 0 | J25: 90.00 | K25: R4,500.00 | L25: 0 | M25: R4,500.00
A26: 4.2.6 | C26: Earplugs | D26: No | E26: 500.00 | F26: R20.00 | G26: R10,000.00 | H26: 90.00 | I26: 0 | J26: 90.00 | K26: R1,800.00 | L26: 0 | M26: R1,800.00
A27: 4.2.7 | C27: Reflector vests | D27: No | E27: 120.00 | F27: R100.00 | G27: R12,000.00 | H27: 90.00 | I27: 0 | J27: 90.00 | K27: R9,000.00 | L27: 0 | M27: R9,000.00
A28: 4.2.8 | C28: Sun-block hats | D28: No | E28: 120.00 | F28: R150.00 | G28: R18,000.00 | H28: 90.00 | I28: 0 | J28: 90.00 | K28: R13,500.00 | L28: 0 | M28: R13,500.00
A29: 4.2.9 | C29: Dust mask | D29: No | E29: 500.00 | F29: R20.00 | G29: R10,000.00 | H29: 90.00 | I29: 0 | J29: 90.00 | K29: R1,800.00 | L29: 0 | M29: R1,800.00
A30: 4.3 | B30: H&S SPEC (9),(ii). CR 23(K) | C30: Inductions, Toolbox talks, Checklists, Registers and Risk asessments | G30: 0 | H30: 0 | I30: 0 | J30: 0 | K30: 0 | L30: 0 | M30: 0
A31: 4.3.1 | C31: Stationary | D31: Sum | E31: 1.00 | F31: R4,000.00 | G31: R4,000.00 | H31: 1.00 | I31: 0 | J31: 1.00 | K31: R4,000.00 | L31: 0 | M31: R4,000.00
A32: 4.3.2 | C32: Printer | D32: Sum | E32: 1.00 | F32: R5,000.00 | G32: R5,000.00 | H32: 1.00 | I32: 0 | J32: 1.00 | K32: R5,000.00 | L32: 0 | M32: R5,000.00
A33: 4.3.3 | C33: Laptop | D33: Sum | E33: 1.00 | F33: R15,000.00 | G33: R15,000.00 | H33: 1.00 | I33: 0 | J33: 1.00 | K33: R15,000.00 | L33: 0 | M33: R15,000.00
A34: 4.4 | B34: CR 7(g). H&S SPEC (16) | C34: Medical Fitness examinations | D34: Sum | E34: 1.00 | F34: R50,000.00 | G34: R50,000.00 | H34: 1.00 | I34: 0 | J34: 1.00 | K34: R50,000.00 | L34: 0 | M34: R50,000.00
A35: 4.5 | B35: H&S SPEC (17).BRA (10).GSR(2B) | C35: Signage and boards | G35: 0 | H35: 0 | I35: 0 | J35: 0 | K35: 0 | L35: 0 | M35: 0
A36: 4.5.1 | C36: Construction Safety Board | D36: No | E36: 5.00 | F36: R1,500.00 | G36: R7,500.00 | H36: 5.00 | I36: 0 | J36: 5.00 | K36: R7,500.00 | L36: 0 | M36: R7,500.00
A37: 4.5.2 | C37: First aid Box | D37: No | E37: 5.00 | F37: R1,500.00 | G37: R7,500.00 | H37: 5.00 | I37: 0 | J37: 5.00 | K37: R7,500.00 | L37: 0 | M37: R7,500.00
A38: 4.5.3 | C38: Fire extinguisher | D38: No | E38: 12.00 | F38: R1,500.00 | G38: R18,000.00 | H38: 12.00 | I38: 0 | J38: 12.00 | K38: R18,000.00 | L38: 0 | M38: R18,000.00
A39: 4.5.4 | C39: Assembly Point | D39: No | E39: 4.00 | F39: R1,500.00 | G39: R6,000.00 | H39: 2.00 | I39: 0 | J39: 2.00 | K39: R3,000.00 | L39: 0 | M39: R3,000.00
A40: 4.5.5 | C40: Excavation | D40: No | E40: 12.00 | F40: R1,500.00 | G40: R18,000.00 | H40: 10.00 | I40: 0 | J40: 10.00 | K40: R15,000.00 | L40: 0 | M40: R15,000.00
A41: 4.5.6 | C41: Plant and Construction vehicle | D41: No | E41: 10.00 | F41: R1,500.00 | G41: R15,000.00 | H41: 0 | I41: 0 | J41: 0 | K41: 0 | L41: 0 | M41: 0
A42: 4.5.7 | C42: Chemicals, Gas and Liquids Flammables | D42: No | E42: 10.00 | F42: R1,500.00 | G42: R15,000.00 | H42: 10.00 | I42: 0 | J42: 10.00 | K42: R15,000.00 | L42: 0 | M42: R15,000.00
A43: 4.5.8 | C43: Toilets information signs ( male and female) | D43: No | E43: 8.00 | F43: R1,500.00 | G43: R12,000.00 | H43: 4.00 | I43: 0 | J43: 4.00 | K43: R6,000.00 | L43: 0 | M43: R6,000.00
A44: 4.5.9 | C44: Eating area information Sign | D44: No | E44: 5.00 | F44: R1,500.00 | G44: R7,500.00 | H44: 5.00 | I44: 0 | J44: 5.00 | K44: R7,500.00 | L44: 0 | M44: R7,500.00
A45: 4.5.10 | C45: Blasting | D45: No | E45: 5.00 | F45: R1,500.00 | G45: R7,500.00 | H45: 0 | I45: 0 | J45: 0 | K45: 0 | L45: 0 | M45: 0
A46: 4.5.11 | C46: Escape routes/ evacuation | D46: No | E46: 6.00 | F46: R1,500.00 | G46: R9,000.00 | H46: 3.00 | I46: 0 | J46: 3.00 | K46: R4,500.00 | L46: 0 | M46: R4,500.00
A47: 4.5.12 | C47: Scaffold safe/unsafe use | D47: No | E47: 6.00 | F47: R1,500.00 | G47: R9,000.00 | H47: 4.00 | I47: 0 | J47: 4.00 | K47: R6,000.00 | L47: 0 | M47: R6,000.00
A48: 4.5.13 | C48: Access control | D48: No | E48: 4.00 | F48: R1,500.00 | G48: R6,000.00 | H48: 4.00 | I48: 0 | J48: 4.00 | K48: R6,000.00 | L48: 0 | M48: R6,000.00
A49: 4.5.14 | C49: No smoking | D49: No | E49: 5.00 | F49: R1,500.00 | G49: R7,500.00 | H49: 5.00 | I49: 0 | J49: 5.00 | K49: R7,500.00 | L49: 0 | M49: R7,500.00
A50: 4.6 | C50: Storage Container | D50: No | E50: 3.00 | F50: R1,500.00 | G50: R4,500.00 | H50: 3.00 | I50: 0 | J50: 3.00 | K50: R4,500.00 | L50: 0 | M50: R4,500.00 | O50: =N50/2 -> 0
A51: 4.7 | C51: Boundry wall ( Hazadours chemicals, liquids and cement mixing area) | D51: No | E51: 4.00 | F51: R1,500.00 | G51: R6,000.00 | H51: 0 | I51: 0 | J51: 0 | K51: 0 | L51: 0 | M51: 0 | O51: =N51/G51 -> 0
A52: 4.8 | C52: Site Offices | D52: No | E52: 2.00 | F52: R1,500.00 | G52: R3,000.00 | H52: 0 | I52: 0 | J52: 0 | K52: 0 | L52: 0 | M52: 0
A53: 5 | B53: BRA (1).H&S SPEC (8) | C53: Training and awareness | G53: 0 | H53: 0 | I53: 0 | J53: 0 | K53: 0 | L53: 0 | M53: 0
A54: 5.1 | C54: SHE rep Training | D54: Sum | E54: 2.00 | F54: R15,000.00 | G54: R30,000.00 | H54: 0 | I54: 0 | J54: 0 | K54: 0 | L54: 0 | M54: 0
A55: 5.2 | C55: First aid level 1,2,3 | D55: Sum | E55: 2.00 | F55: R15,000.00 | G55: R30,000.00 | H55: 0 | I55: 0 | J55: 0 | K55: 0 | L55: 0 | M55: 0
A56: 5.3 | C56: Scaffolding Supervisor | D56: Sum | E56: 2.00 | F56: R15,000.00 | G56: R30,000.00 | H56: 0 | I56: 0 | J56: 0 | K56: 0 | L56: 0 | M56: 0
A57: 5.4 | C57: Working at heights | D57: Sum | E57: 3.00 | F57: R15,000.00 | G57: R45,000.00 | H57: 0 | I57: 0 | J57: 0 | K57: 0 | L57: 0 | M57: 0
A58: 5.5 | C58: Risk assessment analyses | D58: Sum | E58: 1.00 | F58: R15,000.00 | G58: R15,000.00 | H58: 0 | I58: 0 | J58: 0 | K58: 0 | L58: 0 | M58: 0
A59: 5.6 | C59: Environmental awareness campaign | D59: Sum | E59: 2.00 | F59: R25,000.00 | G59: R50,000.00 | H59: 0 | I59: 0 | J59: 0 | K59: 0 | L59: 0 | M59: 0
A60: 5.7 | C60: HIV/AIDS awareness and accomodation needs, posters and distribution of condoms. X90 employees | D60: Sum | E60: 1.00 | F60: R10,000.00 | G60: R10,000.00 | H60: 1.00 | I60: 0 | J60: 1.00 | K60: R10,000.00 | L60: 0 | M60: R10,000.00
A61: 6 | B61: H&S SPEC (i) | C61: Appointments with remunirations | G61: 0 | H61: 0 | I61: 0 | J61: 0 | K61: 0 | L61: 0 | M61: 0
A62: 6.1 | B62: CR8(5) | C62: Registered construction health and safety officer | D62: Months | E62: 12.00 | F62: R16,500.00 | G62: R198,000.00 | H62: 4.00 | I62: 1.00 | J62: 5.00 | K62: R66,000.00 | L62: R16,500.00 | M62: R82,500.00
A63: 6.2 | B63: OHSA(17) | C63: Competent SHE rep with a SHE certificate | D63: Months | E63: 12.00 | F63: R12,500.00 | G63: R150,000.00 | H63: 4.00 | I63: 1.00 | J63: 5.00 | K63: R50,000.00 | L63: R12,500.00 | M63: R62,500.00
A64: 6.3 | B64: GSR 3(6) | C64: First aider with level 1,2,3 certificate | D64: Months | E64: 12.00 | F64: R7,250.00 | G64: R87,000.00 | H64: 4.00 | I64: 1.00 | J64: 5.00 | K64: R29,000.00 | L64: R7,250.00 | M64: R36,250.00
A65: 6.4 | B65: H&S SPEC(i) | C65: Scaffold erector | D65: Months | E65: 2.00 | F65: R7,300.00 | G65: R14,600.00 | H65: 0 | I65: 0 | J65: 0 | K65: 0 | L65: 0 | M65: 0
A66: 6.5 | B66: H&S SPEC (17) | C66: Site Security (Security Officer) | D66: Months | E66: 12.00 | F66: R15,000.00 | G66: R180,000.00 | H66: 4.00 | I66: 1.00 | J66: 5.00 | K66: R60,000.00 | L66: R15,000.00 | M66: R75,000.00
A67: 6.5.1 | C67: Mobile guard-house | D67: No | E67: 1.00 | F67: R12,555.00 | G67: R12,555.00 | H67: 1.00 | I67: 0 | J67: 1.00 | K67: R12,555.00 | L67: 0 | M67: R12,555.00
A68: 7 | B68: H&S SPEC(y).CR27 | C68: Housekeeping | G68: 0 | H68: 0 | I68: 0 | J68: 0 | K68: 0 | L68: 0 | M68: 0
A69: 7.1 | C69: Barricading of ruble, use a 1m height and 200m long orange net | D69: Sum | E69: 1.00 | F69: R8,125.00 | G69: R8,125.00 | H69: 1.00 | I69: 0 | J69: 1.00 | K69: R8,125.00 | L69: 0 | M69: R8,125.00
A70: 7.2 | B70: BRA(13) | C70: Removal of waste off site once a week | G70: 0 | H70: 0 | I70: 0 | J70: 0 | K70: 0 | L70: 0 | M70: 0
A71: 7.2.1 | C71: Transportation once a week | D71: Sum | E71: 1.00 | F71: R120,000.00 | G71: R120,000.00 | H71: 0.40 | I71: =J71-H71 -> 0 | J71: 0.40 | K71: =H71*F71 -> R48,000.00 | L71: =I71*F71 -> 0 | M71: =J71*F71 -> R48,000.00
A72: 7.3 | B72: CR27.H&S SPEC(y) | C72: Cleaning materials and chemicals | G72: 0 | H72: 0 | I72: 0 | J72: 0 | K72: 0 | L72: 0 | M72: 0
A73: 7.3.1 | C73: Broom | D73: No | E73: 10.00 | F73: R100.00 | G73: R1,000.00 | H73: 4.00 | I73: 1.00 | J73: 5.00 | K73: R400.00 | L73: R100.00 | M73: R500.00
A74: 7.3.2 | C74: Mop | D74: No | E74: 4.00 | F74: R100.00 | G74: R400.00 | H74: 3.00 | I74: 0 | J74: 3.00 | K74: R300.00 | L74: 0 | M74: R300.00
A75: 7.3.3 | C75: Sunlight liquid ( 25L) | D75: No | E75: 3.00 | F75: R50.00 | G75: R150.00 | H75: 1.00 | I75: 0 | J75: 1.00 | K75: R50.00 | L75: 0 | M75: R50.00
A76: 7.3.4 | C76: Handy andy (25) | D76: No | E76: 3.00 | F76: R50.00 | G76: R150.00 | H76: 1.00 | I76: 0 | J76: 1.00 | K76: R50.00 | L76: 0 | M76: R50.00
A77: 8 | B77: H&S SPEC(i) SABS Code 085.SANS 10085 | C77: Scaffolding | G77: 0 | H77: 0 | I77: 0 | J77: 0 | K77: 0 | L77: 0 | M77: 0
C78: Scaffolding to include shutter boards, toe | G78: 0 | H78: 0 | I78: 0 | J78: 0 | K78: 0 | L78: 0 | M78: 0
C79: boards, base jacks, access stairs/ladders, | G79: 0 | H79: 0 | I79: 0 | J79: 0 | K79: 0 | L79: 0 | M79: 0
C80: braces and safety harnesses | D80: Sum | E80: 1.00 | F80: R128,400.00 | G80: R128,400.00 | H80: 0 | I80: 0 | J80: 0 | K80: 0 | L80: 0 | M80: 0
A81: 9 | B81: ER | C81: Environmental | G81: 0 | H81: 0 | I81: 0 | J81: 0 | K81: 0 | L81: 0 | M81: 0
A82: 9.1 | C82: Dust suppression around the plant and site ( twice a day) during construction | D82: Sum | E82: 1.00 | F82: R157,300.00 | G82: R157,300.00 | H82: 0.40 | I82: 0.10 | J82: 0.50 | K82: R62,920.00 | L82: R15,730.00 | M82: R78,650.00
A83: 9.2 | C83: Waste Management around the plant and site during construction | D83: Sum | E83: 1.00 | F83: R95,000.00 | G83: =F83*E83 -> R95,000.00 | H83: 0.40 | I83: 0.10 | J83: 0.50 | K83: R38,000.00 | L83: R9,500.00 | M83: R47,500.00
A84: 9.3 | C84: Environmental Complience during construction in terms of the project | D84: Sum | E84: 1.00 | F84: R55,000.00 | G84: R55,000.00 | H84: 0.40 | I84: 0.10 | J84: 0.50 | K84: R22,000.00 | L84: R5,500.00 | M84: R27,500.00
A85: 9.4 | C85: Environmental Officer | D85: Sum | E85: 1.00 | F85: R160,000.00 | G85: R160,000.00 | H85: 0.40 | I85: 0.10 | J85: 0.50 | K85: R64,000.00 | L85: R16,000.00 | M85: R80,000.00
A86: 10 | B86: H&S SPEC(18).CR | C86: Emergency Prepareredness | G86: 0 | H86: 0 | I86: 0 | J86: 0 | K86: 0 | L86: 0 | M86: 0
A87: 10.1 | C87: Plastic spine board-heavy duty | D87: No | E87: 1.00 | F87: R10,000.00 | G87: R10,000.00 | H87: 1.00 | I87: 0 | J87: 1.00 | K87: R10,000.00 | L87: 0 | M87: R10,000.00
A88: 10.2 | C88: Emergecny board | D88: No | E88: 1.00 | F88: R10,000.00 | G88: R10,000.00 | H88: 1.00 | I88: 0 | J88: 1.00 | K88: R10,000.00 | L88: 0 | M88: R10,000.00
A89: 10.3 | C89: Emergency Alarm | D89: No | E89: 1.00 | F89: R10,000.00 | G89: R10,000.00 | H89: 1.00 | I89: 0 | J89: 1.00 | K89: R10,000.00 | L89: 0 | M89: R10,000.00
A90: 11 | B90: H&S SPEC (h). CR23(g), CR13 | C90: Excavation | G90: 0 | H90: 0 | I90: 0 | J90: 0 | K90: 0 | L90: 0 | M90: 0
A91: 11.1 | C91: Barricading(use orange netting) 900mm high | D91: Sum | E91: 1.00 | F91: R150,000.00 | G91: R150,000.00 | H91: 1.00 | I91: 0 | J91: 1.00 | K91: R150,000.00 | L91: 0 | M91: R150,000.00
A92: 12 | C92: Blasting | G92: 0 | H92: 0 | I92: 0 | J92: 0 | K92: 0 | L92: 0 | M92: 0
A93: 12.1 | C93: Blasting permit (Department of labour) | D93: Sum | E93: 1.00 | F93: R60,000.00 | G93: R60,000.00 | H93: 1.00 | I93: 0 | J93: 1.00 | K93: R60,000.00 | L93: 0 | M93: R60,000.00
A94: 12,2 | C94: Blasting specialist | D94: Sum | E94: 1.00 | F94: R90,500.00 | G94: R90,500.00 | H94: 1.00 | I94: 0 | J94: 1.00 | K94: R90,500.00 | L94: 0 | M94: R90,500.00
A95: 13 | B95: H&S SPEC(v).CR17 | C95: Formwork and Suspended platform | D95: Sum | E95: 1.00 | F95: R100,000.00 | G95: R100,000.00 | H95: 0 | I95: 0 | J95: 0 | K95: 0 | L95: 0 | M95: 0
A96: 13.1 | C96: Temporary handrails/Guardrails( If the form work exceeds 3m height) | D96: Sum | E96: 1.00 | F96: R40,000.00 | G96: R40,000.00 | H96: 0 | I96: 0 | J96: 0 | K96: 0 | L96: 0 | M96: 0
A97: 13.2 | C97: Safety harnesses | D97: No | E97: 8.00 | F97: R15,000.00 | G97: R120,000.00 | H97: 0 | I97: 0 | J97: 0 | K97: 0 | L97: 0 | M97: 0
A98: 14 | B98: CR24.H&S SPEC (p). | C98: Electricall Installations | D98: Sum | E98: 1.00 | F98: R13,100.00 | G98: R13,100.00 | H98: 1.00 | I98: 0 | J98: 1.00 | K98: R13,100.00 | L98: 0 | M98: R13,100.00
A99: 15 | B99: CR14.H&S SPEC (20). | C99: Demolitions | D99: Sum | E99: 1.00 | F99: R50,000.00 | G99: R50,000.00 | H99: 0 | I99: 0 | J99: 0 | K99: 0 | L99: 0 | M99: 0
A100: 16 | B100: GSR13A.CR12(3)(m). | C100: Ladders(Not exceeding 5m) | D100: Sum | E100: 1.00 | F100: R9,764.59 | G100: R9,764.59 | H100: 0.40 | I100: 0.10 | J100: 0.50 | K100: R3,905.84 | L100: R976.46 | M100: R4,882.30
A101: 17 | B101: H&S SPEC (11)CR7(1)(b) | C101: Health and Safety File inline with Costruction Regulation 2014 | D101: Sum | E101: 1.00 | F101: R50,000.00 | G101: R50,000.00 | H101: 1.00 | I101: 0 | J101: 1.00 | K101: R50,000.00 | L101: =I101*F101 -> 0 | M101: =J101*F101 -> R50,000.00
C102: TIME RELATED CHARGE ITEMS | G102: 0 | H102: 0 | I102: 0 | J102: 0 | K102: 0 | L102: 0 | M102: 0
A103: 18 | C103: Site Establishment | G103: 0 | H103: 0 | I103: 0 | J103: 0 | K103: 0 | L103: 0 | M103: 0
A104: 18.1 | C104: Fencing to the construction site ( 1.8m high) | D104: Month | E104: 12.00 | F104: R5,000.00 | G104: R60,000.00 | H104: 5.00 | I104: 1.00 | J104: 6.00 | K104: R25,000.00 | L104: R5,000.00 | M104: R30,000.00
A105: 18.2 | C105: Hoarding with a green net (1.8m high) | D105: Month | E105: 12.00 | F105: R5,000.00 | G105: R60,000.00 | H105: 5.00 | I105: 1.00 | J105: 6.00 | K105: R25,000.00 | L105: R5,000.00 | M105: R30,000.00
A106: 18.3 | C106: Site Clearance and waste disposal | D106: Month | E106: 12.00 | F106: R10,000.00 | G106: R120,000.00 | H106: 5.00 | I106: 1.00 | J106: 6.00 | K106: R50,000.00 | L106: R10,000.00 | M106: R60,000.00
A107: 18.4 | B107: GSR 3(2). H&S Spec (z) | C107: First aid boxes | D107: Month | E107: 12.00 | F107: R2,500.00 | G107: R30,000.00 | H107: 5.00 | I107: 1.00 | J107: 6.00 | K107: R12,500.00 | L107: R2,500.00 | M107: R15,000.00
A108: 18.5 | B108: GSR 4. BRA 15, 35. CR 29 | C108: Fire Extinguishers ( 7x 9kgs and 3x 5kgs) | D108: Month | E108: 12.00 | F108: R2,500.00 | G108: R30,000.00 | H108: 5.00 | I108: 1.00 | J108: 6.00 | K108: R12,500.00 | L108: R2,500.00 | M108: R15,000.00
A109: 18.6 | B109: CR 30.BRA 2.H&S SPEC (u) | C109: Water Flushing Toilets ( 1 per 15 people, each toilet per gender) | D109: Month | E109: 12.00 | F109: R2,700.00 | G109: R32,400.00 | H109: 5.00 | I109: 1.00 | J109: 6.00 | K109: R13,500.00 | L109: R2,700.00 | M109: R16,200.00
A110: 18.7 | B110: CR27 | C110: Waste bins ( Plastic overlapping waste bins 100L) | D110: Month | E110: 12.00 | F110: R1,000.00 | G110: R12,000.00 | H110: 5.00 | I110: 1.00 | J110: 6.00 | K110: R5,000.00 | L110: R1,000.00 | M110: R6,000.00
A111: 18.8 | B111: CR30 | C111: Shadding net for an eating area ( Green net 5m long) | D111: Month | E111: 12.00 | F111: R1,000.00 | G111: R12,000.00 | H111: 5.00 | I111: 1.00 | J111: 6.00 | K111: R5,000.00 | L111: R1,000.00 | M111: R6,000.00
A112: 18.9 | B112: CR30 | C112: Benches for an eating area ( 4m long) | D112: Month | E112: 12.00 | F112: R500.00 | G112: R6,000.00 | H112: 5.00 | I112: 1.00 | J112: 6.00 | K112: R2,500.00 | L112: R500.00 | M112: R3,000.00
A113: 19 | B113: H&S SPEC (g). CR 7(6). GSR 2 | C113: Personal Protective Equipment | G113: 0 | H113: 0 | I113: 0 | J113: 0 | K113: 0 | L113: 0 | M113: 0
A114: 19.1 | C114: Overalls( Blue/Orange/Green) | D114: Month | E114: 12.00 | F114: R3,500.00 | G114: R42,000.00 | H114: 5.00 | I114: 1.00 | J114: 6.00 | K114: R17,500.00 | L114: R3,500.00 | M114: R21,000.00
A115: 19.2 | C115: Hart hats | D115: Month | E115: 12.00 | F115: R650.00 | G115: R7,800.00 | H115: 5.00 | I115: 1.00 | J115: 6.00 | K115: R3,250.00 | L115: R650.00 | M115: R3,900.00
A116: 19.3 | C116: Boots | G116: 0 | K116: 0 | L116: 0 | M116: 0
A117: 19.3.1 | C117: water boots | D117: Month | E117: 12.00 | F117: R5,000.00 | G117: R60,000.00 | H117: 5.00 | I117: 1.00 | J117: 6.00 | K117: R25,000.00 | L117: R5,000.00 | M117: R30,000.00
A118: 19.3.2 | C118: Safety boots | D118: Month | E118: 12.00 | F118: R5,000.00 | G118: R60,000.00 | H118: 5.00 | I118: 1.00 | J118: 6.00 | K118: R25,000.00 | L118: R5,000.00 | M118: R30,000.00
A119: 19.4 | C119: Gloves ( General and Skilled activities) | D119: Month | E119: 12.00 | F119: R500.00 | G119: R6,000.00 | H119: 5.00 | I119: 1.00 | J119: 6.00 | K119: R2,500.00 | L119: R500.00 | M119: R3,000.00
A120: 19.5 | C120: Goggles | D120: Month | E120: 12.00 | F120: R500.00 | G120: R6,000.00 | H120: 5.00 | I120: 1.00 | J120: 6.00 | K120: R2,500.00 | L120: R500.00 | M120: R3,000.00
A121: 19.6 | C121: Earplugs | D121: Month | E121: 12.00 | F121: R500.00 | G121: R6,000.00 | H121: 5.00 | I121: 1.00 | J121: 6.00 | K121: R2,500.00 | L121: R500.00 | M121: R3,000.00
A122: 19.7 | C122: Reflector vests | D122: Month | E122: 12.00 | F122: R500.00 | G122: R6,000.00 | H122: 5.00 | I122: 1.00 | J122: 6.00 | K122: R2,500.00 | L122: R500.00 | M122: R3,000.00
A123: 19.8 | C123: Sun-block hats | D123: Month | E123: 12.00 | F123: R500.00 | G123: R6,000.00 | H123: 5.00 | I123: 1.00 | J123: 6.00 | K123: R2,500.00 | L123: R500.00 | M123: R3,000.00
A124: 19.9 | C124: Dust mask | D124: Month | E124: 12.00 | F124: R500.00 | G124: R6,000.00 | H124: 5.00 | I124: 1.00 | J124: 6.00 | K124: R2,500.00 | L124: R500.00 | M124: R3,000.00
A125: 19.1 | C125: Medical Vaccination for all Labourers working on site, specific for Waste Water Treatment Works | D125: Month | E125: 12.00 | F125: R500.00 | G125: R6,000.00 | H125: 5.00 | I125: 1.00 | J125: 6.00 | K125: R2,500.00 | L125: R500.00 | M125: R3,000.00
A126: 20 | B126: H&S SPEC (9),(ii). CR 23(K) | C126: Inductions, Toolbox talks, Checklists, Registers and Risk asessments | G126: 0 | H126: 0 | I126: 0 | J126: 0 | K126: 0 | L126: 0 | M126: 0
A127: 20.1 | C127: Stationary | D127: Month | E127: 12.00 | F127: R5,000.00 | G127: R60,000.00 | H127: 5.00 | I127: 1.00 | J127: 6.00 | K127: R25,000.00 | L127: R5,000.00 | M127: R30,000.00
A128: 20.2 | C128: Printer | D128: Month | E128: 12.00 | F128: R5,000.00 | G128: R60,000.00 | H128: 5.00 | I128: 1.00 | J128: 6.00 | K128: R25,000.00 | L128: R5,000.00 | M128: R30,000.00
A129: 20.3 | C129: Laptop | D129: Month | E129: 12.00 | F129: R5,000.00 | G129: R60,000.00 | H129: 5.00 | I129: 1.00 | J129: 6.00 | K129: R25,000.00 | L129: R5,000.00 | M129: R30,000.00
A130: 21 | B130: CR 7(g). H&S SPEC (16) | C130: Medical Fitness examinations | D130: Month | E130: 12.00 | F130: R15,000.00 | G130: R180,000.00 | H130: 5.00 | I130: 1.00 | J130: 6.00 | K130: R75,000.00 | L130: R15,000.00 | M130: R90,000.00
A131: 22 | B131: H&S SPEC(y).CR27 | C131: Housekeeping | G131: 0 | H131: 0 | I131: 0 | J131: 0 | K131: 0 | L131: 0 | M131: 0
A132: 22.1 | C132: Barricading of ruble, use a 1m height and 200m long orange net | D132: Month | E132: 12.00 | F132: R1,000.00 | G132: R12,000.00 | H132: 5.00 | I132: 1.00 | J132: 6.00 | K132: R5,000.00 | L132: R1,000.00 | M132: R6,000.00
A133: 23 | B133: BRA(13) | C133: Removal of waste off site once a week | G133: 0 | H133: 0 | I133: 0 | K133: 0 | L133: 0 | M133: 0
A134: 23.1 | C134: Transportation once a week | D134: Month | E134: 12.00 | F134: R1,500.00 | G134: R18,000.00 | H134: 5.00 | I134: 1.00 | J134: 6.00 | K134: R7,500.00 | L134: R1,500.00 | M134: R9,000.00
A135: 24 | B135: H&S SPEC (h). CR23(g), CR13 | C135: Excavation | G135: 0 | H135: 0 | I135: =J135-H135 -> 0 | J135: 0 | K135: =H135*F135 -> 0 | L135: =I135*F135 -> 0 | M135: =J135*F135 -> 0
A136: 24.1 | C136: Barricading (use orange netting) 900mm high | D136: Month | E136: 12.00 | F136: R1,000.00 | G136: R12,000.00 | H136: 5.00 | I136: 1.00 | J136: 6.00 | K136: R5,000.00 | L136: R1,000.00 | M136: R6,000.00
A141: Total Section 1 Carried to Summary | G141: =SUM(G3:G140) -> R3,999,244.59 | K141: =SUM(K5:K140) -> R1,887,005.84 | L141: =SUM(L5:L140) -> R180,406.46 | M141: R2,067,412.30
G143: R3,999,244.59
G145: =G143-G141 -> 0

Sheet Summary (FANIE) (hidden)
A1: SUMMARY REFURBISHMENT AND COMMISSINING OF A 10 ML/DAY PACKAGE PLANT. | E1: CLAIM 1 - 29 Feb 2024
A2: ITEM | B2: DESCRIPTION | C2: AMOUNT | E2: AMOUNT TO DATE | F2: AMOUNT PREVIOUS | G2: AMOUNT CURRENT
A4: 1 | B4: Preliminary and General | C4: ='P&G'!G55 -> 1,012,901.00 | E4: ='P&G'!K55 -> 269,250.00 | F4: ='P&G'!L55 -> 0 | G4: ='P&G'!M55 -> 269,250.00
A7: 2 | B7: Civil and General Site Works | C7: ='Civil & General SIte Works'!G35 -> 825,360.00 | E7: ='Civil & General SIte Works'!K35 -> 11,000.00 | F7: ='Civil & General SIte Works'!L35 -> 0 | G7: ='Civil & General SIte Works'!M35 -> 11,000.00
A10: 3 | B10: Eskom Power Supply and Electrical Works | C10: ='Eskom Power Supply & Electrical'!G29 -> 2,405,273.00 | E10: ='Eskom Power Supply & Electrical'!K29 -> 340,595.90 | F10: ='Eskom Power Supply & Electrical'!L29 -> 0 | G10: ='Eskom Power Supply & Electrical'!M29 -> 340,595.90
A13: 4 | B13: Mechanical Works | C13: ='Mechanical Works'!G32 -> 2,366,484.00 | E13: ='Mechanical Works'!K32 -> 192,277.30 | F13: ='Mechanical Works'!L32 -> 0 | G13: ='Mechanical Works'!M32 -> 192,277.30
B17: Sub Total A | C17: =SUM(C4:C13) -> 6,610,018.00 | E17: =SUM(E4:E13) -> 813,123.20 | F17: =SUM(F4:F13) -> 0 | G17: =SUM(G4:G13) -> 813,123.20
B21: CONTIGENCIES AT 10% | C21: =C17*15% -> 991,502.70 | E21: 0 | F21: 0 | G21: 0
B24: Sub Total B | C24: =C17+C21 -> 7,601,520.70 | E24: =E17+E21 -> 813,123.20 | F24: =F17+F21 -> 0 | G24: =G17+G21 -> 813,123.20
B26: 15 % VAT | C26: =C24*15% -> 1,140,228.11 | E26: =E24*15% -> 121,968.48 | F26: =F24*15% -> 0 | G26: =G24*15% -> 121,968.48
B28: TOTAL PRICE VAT INCLUSIVE | C28: =C26+C24 -> 8,741,748.81 | E28: =E26+E24 -> 935,091.68 | F28: =F26+F24 -> 0 | G28: =G26+G24 -> 935,091.68

Sheet P&G (hidden)
A1: REFURBISHMENT AND COMMISSINING OF A 10 ML/DAY PACKAGE PLANT.
A2: ITEM NO | B2: PAYMENT | C2: DESCRIPTION | D2: UNIT | E2: QTY | F2: RATE | G2: AMOUNT | H2: QTY TO DATE | I2: QTY PREVIOUS | J2: QTY CURRENT | K2: AMOUNT TO DATE | L2: AMOUNT PREVIOUS | M2: AMOUNT CURRENT
A5: 1 | B5: 1200A | C5: SECTION 1 : PRELIMINARY & GENERAL
A6: 1.1 | B6: 8.3 | C6: FIXED-CHARGE ITEMS
A8: 1.1.1 | B8: 8.3.1 | C8: Contractual Requirements | D8: Sum | E8: 1 | F8: R228,850.00 | G8: =E8*F8 -> R228,850.00 | H8: 100% | I8: 0% | J8: =H8-I8 -> 100% | K8: =F8*H8 -> 228,850.00 | L8: =F8*I8 -> 0 | M8: =F8*J8 -> 228,850.00
A9: 1.2 | B9: 8.3.2 | C9: Establishment of Facilities on the Site | D9: Sum | E9: 1 | F9: R35,000.00 | G9: =E9*F9 -> R35,000.00 | H9: 100% | I9: 0% | J9: =H9-I9 -> 100% | K9: =F9*H9 -> 35,000.00 | L9: =F9*I9 -> 0 | M9: =F9*J9 -> 35,000.00
A11: 1.2.1 | B11: 8.3.2.2 | C11: Facilities required by the Contractor
A12: 1.2.1.1 | C12: a) Offices & Storage Sheds | D12: Sum | E12: Rate Only | F12: R36,000.00 | G12: Rate Only
A13: 1.2.1.3 | C13: b) Ablution and latrine facilities | D13: Sum | E13: Rate Only | F13: R25,000.00 | G13: Rate Only
A14: 1.2.1.6 | C14: c) Dealing with water | D14: Sum | E14: Rate Only | F14: R15,000.00 | G14: Rate Only
A15: 1.2.1.7 | C15: d) Plant | D15: Sum | E15: Rate Only | F15: R35,000.00 | G15: Rate Only
A18: 1.1.10 | B18: 8.3.4 | C18: Removal of Site Establishment | D18: Sum | E18: 1 | F18: R55,602.00 | G18: =F18*E18 -> R55,602.00 | H18: 0% | I18: 0% | J18: =H18-I18 -> 0% | K18: =F18*H18 -> 0 | L18: =F18*I18 -> 0 | M18: =F18*J18 -> 0
A19: 1.1.11 | C19: Clear rubble and waste from site | D19: Sum | E19: 1 | F19: R15,800.00 | G19: =F19*E19 -> R15,800.00 | H19: 0% | I19: 0% | J19: =H19-I19 -> 0% | K19: =F19*H19 -> 0 | L19: =F19*I19 -> 0 | M19: =F19*J19 -> 0
A21: 1.2 | B21: 8.4 | C21: TIME-RELATED ITEMS
A23: 1.2.1 | B23: 8.4.1 | C23: Contractual Requirements | D23: Sum | E23: 1 | F23: R168,560.00 | G23: R168,560.00 | H23: 0% | I23: 0% | J23: =H23-I23 -> 0% | K23: =F23*H23 -> 0 | L23: =F23*I23 -> 0 | M23: =F23*J23 -> 0
A24: 1.2.2 | B24: 8.4.2 | C24: Operation and Maintenance of Package Plant for a period of 12 months; complete with inspections during the defects liability period. | D24: Sum | E24: 1 | F24: R408,589.00 | G24: R408,589.00 | H24: 0% | I24: 0% | J24: =H24-I24 -> 0% | K24: =F24*H24 -> 0 | L24: =F24*I24 -> 0 | M24: =F24*J24 -> 0
H25: 0% | I25: 0% | J25: =H25-I25 -> 0% | K25: =F25*H25 -> 0 | L25: =F25*I25 -> 0 | M25: =F25*J25 -> 0
A26: 1.2.3 | B26: 8.4.2.2 | C26: Facilities required by the Contractor | H26: 0% | I26: 0% | J26: =H26-I26 -> 0% | K26: =F26*H26 -> 0 | L26: =F26*I26 -> 0 | M26: =F26*J26 -> 0
A27: 1.2.3.1 | C27: a) Offices & Storage Sheds | D27: Sum | E27: 1 | F27: R36,000.00 | G27: Rate Only
A28: 1.2.3.2 | C28: b) Ablution and latrine facilities | D28: Sum | E28: 1 | F28: R25,000.00 | G28: Rate Only
A29: 1.2.3.3 | C29: c) Dealing with water | D29: Sum | E29: 1 | F29: R15,000.00 | G29: Rate Only | H29: 0% | I29: 0% | J29: =H29-I29 -> 0% | K29: =F29*H29 -> 0 | L29: =F29*I29 -> 0 | M29: =F29*J29 -> 0
A30: 1.2.3.4 | C30: d) Plant | D30: Sum | E30: 1 | F30: R35,000.00 | G30: Rate Only | H30: 0% | I30: 0% | J30: =H30-I30 -> 0% | K30: =F30*H30 -> 0 | L30: =F30*I30 -> 0 | M30: =F30*J30 -> 0
A31: 1.2.3.5 | C31: e) Construction Name Board | D31: No. | E31: 1 | F31: R18,000.00 | G31: Rate Only | H31: 0% | I31: 0% | J31: =H31-I31 -> 0% | K31: =F31*H31 -> 0 | L31: =F31*I31 -> 0 | M31: =F31*J31 -> 0
A32: 1.2.3.6 | C32: f) Security until project completion | D32: months | E32: 5 | F32: R16,500.00 | G32: =F32*E32 -> R82,500.00 | H32: 0% | I32: 0% | J32: =H32-I32 -> 0% | K32: =F32*H32 -> 0 | L32: =F32*I32 -> 0 | M32: =F32*J32 -> 0
A34: 1.3 | B34: 8.7 | C34: DAYWORKS (Provisional)
A35: 1.3.1 | C35: a) Labour | D35: h | E35: 1 | F35: R35.00 | G35: Rate Only | H35: 0% | I35: 0% | J35: =H35-I35 -> 0% | K35: =F35*H35 -> 0 | L35: =F35*I35 -> 0 | M35: =F35*J35 -> 0
A36: 1.3.2 | C36: b) Skilled | D36: h | E36: 1 | F36: R155.00 | G36: Rate Only | H36: 0% | I36: 0% | J36: 0% | K36: 0 | L36: 0 | M36: 0
A37: 1.3.3 | C37: c) Semi-skilled | D37: h | E37: 1 | F37: R85.00 | G37: Rate Only | H37: 0% | I37: 0% | J37: 0% | K37: 0 | L37: 0 | M37: 0
A38: 1.3.4 | C38: d) Unskilled | D38: h | E38: 1 | F38: R55.00 | G38: Rate Only | H38: 0% | I38: 0% | J38: 0% | K38: 0 | L38: 0 | M38: 0
A39: 1.3.5 | C39: e) Materials | D39: Prov | E39: 1 | F39: R25,000.00 | G39: Rate Only | H39: 0% | I39: 0% | J39: 0% | K39: 0 | L39: 0 | M39: 0
A40: 1.3.6 | C40: f) Nett costs of Materials (Prov Sum) | D40: Sum | E40: 1 | F40: R35,000.00 | G40: Rate Only | H40: 0% | I40: 0% | J40: 0% | K40: 0 | L40: 0 | M40: 0
A41: 1.3.7 | C41: g) Percentage Adjustment | D41: % | E41: 1 | F41: R10.00 | G41: Rate Only | H41: 0% | I41: 0% | J41: 0% | K41: 0 | L41: 0 | M41: 0
A42: 1.3.8 | C42: h) Plants (incl. overheads, profits etc) | D42: h | E42: 1 | F42: R55,000.00 | G42: Rate Only | H42: 0% | I42: 0% | J42: 0% | K42: 0 | L42: 0 | M42: 0
A44: 1.4 | B44: PSA8.3 | C44: Compliance with Occupational Health & Safety Act (Act 85 of 1993 and amendments)
A46: 1.4.1 | C46: Preparation and implementation of Health and Safety Plan | D46: Sum | E46: 1 | F46: R10,000.00 | G46: =F46*E46 -> R10,000.00 | H46: 30% | I46: 0% | J46: =H46-I46 -> 30% | K46: =F46*H46 -> 3,000.00 | L46: =F46*I46 -> 0 | M46: =F46*J46 -> 3,000.00
A48: 1.4.2 | C48: Personnel and Protective clothing and equipments | D48: Sum | E48: 1 | F48: R8,000.00 | G48: =E48*F48 -> R8,000.00 | H48: 30% | I48: 0% | J48: =H48-I48 -> 30% | K48: =F48*H48 -> 2,400.00 | L48: =F48*I48 -> 0 | M48: =F48*J48 -> 2,400.00
A50: 1.5 | C50: Additional Items - specify and cost
A52: 1.5.1 | C52: …................................................................... | D52: Sum | E52: 1
A53: 1.5.2 | C53: …................................................................... | D53: Sum | E53: 1
A55: Total Carried to Summary | G55: =SUM(G4:G54) -> R1,012,901.00 | K55: =SUM(K4:K54) -> 269,250.00 | L55: =SUM(L4:L54) -> 0 | M55: =SUM(M4:M54) -> 269,250.00

Sheet Mechanical Works (hidden)
A1: REFURBISHMENT AND COMMISSINING OF A 10 ML/DAY PACKAGE PLANT.
A2: ITEM NO | B2: PAYMENT | C2: DESCRIPTION. REFURBISHMENT AND COMMISSINING OF A 10 ML/DAY PACKAGE PLANT. | D2: UNIT | E2: QTY | F2: RATE | G2: AMOUNT | H2: QTY TO DATE | I2: QTY PREVIOUS | J2: QTY CURRENT | K2: AMOUNT TO DATE | L2: AMOUNT PREVIOUS | M2: AMOUNT CURRENT
A4: 5 | C4: MECHANICAL WORKS
A6: 5.1 | C6: Repair of Mixers
A7: 5,1,1 | C7: Test, recondition/refurbishment and commission of Clarifier mixers complete with gearboxs and motors | D7: Sum | E7: 4 | F7: 46,562.00 | G7: =F7*E7 -> 186,248.00 | H7: 100% | I7: 0% | J7: =H7-I7 -> 100% | K7: =F7*H7 -> 46,562.00 | L7: =F7*I7 -> 0 | M7: =F7*J7 -> 46,562.00
A9: 5.2 | C9: PUMP REPAIRS
A10: 5,2,1 | C10: Test, recondition/refurbishment and commission of Backwash pumps by KSB complete with motors | D10: Sum | E10: 2 | F10: 55,800.00 | G10: =F10*E10 -> 111,600.00 | H10: 50% | I10: 0% | J10: =H10-I10 -> 50% | K10: =F10*H10 -> 27,900.00 | L10: =F10*I10 -> 0 | M10: =F10*J10 -> 27,900.00
A11: 5,2,3 | C11: Test, recondition/refurbishment and commission of High lift pumps by KSB complete with motors | D11: Sum | E11: 2 | F11: 128,682.00 | G11: 257,364.00 | H11: 50% | I11: 0% | J11: =H11-I11 -> 50% | K11: =F11*H11 -> 64,341.00 | L11: =F11*I11 -> 0 | M11: =F11*J11 -> 64,341.00
A12: 5,2,4 | C12: Test, recondition/refurbishment and commission of active sludge flow pumps complete with motors | D12: Sum | E12: 2 | F12: 25,235.00 | G12: 50,470.00 | H12: 50% | I12: 0% | J12: 50% | K12: 12,617.50 | L12: 0 | M12: 12,617.50
A13: 5,2,5 | C13: Test, recondition/refurbishment and commission of compressors complete. | D13: Sum | E13: 2 | F13: 7,850.00 | G13: 15,700.00 | H13: 50% | I13: 0% | J13: 50% | K13: 3,925.00 | L13: 0 | M13: 3,925.00
A15: 5.3 | C15: REPLACEMENT OF ACTUATORS AND VALVES
A16: 5,3,1 | C16: Repairs of valves, complete with electric actuators for electrical control, various sizes- bidder to list the number of actuators at the inlet and filters. (Replace pnumatic actuators completely) | D16: Sum | E16: 16 | F16: 54,856.00 | G16: 877,696.00 | H16: 0% | I16: 0% | J16: 0% | K16: 0 | L16: 0 | M16: 0
A17: 5,3,2 | C17: Repairs of valves, complete with gaskets and bolts in all installations. | D17: Sum | E17: 24 | F17: 6,852.00 | G17: 164,448.00 | H17: 0% | I17: 0% | J17: 0% | K17: 0 | L17: 0 | M17: 0
A19: 5.4 | C19: COMMISSIONING OF FILTERS
A20: 5,4,1 | C20: Replacement of filter media in each of the filters | D20: Sum | E20: 5 | F20: 65,832.00 | G20: 329,160.00 | H20: 0% | I20: 0% | J20: =H20-I20 -> 0% | K20: =F20*H20 -> 0 | L20: =F20*I20 -> 0 | M20: =F20*J20 -> 0
A21: 5,4,2 | C21: Recondition filter pipes and fittings | D21: Sum | E21: 1 | F21: 66,032.00 | G21: 66,032.00 | H21: 0% | I21: 0% | J21: =H21-I21 -> 0% | K21: =F21*H21 -> 0 | L21: =F21*I21 -> 0 | M21: =F21*J21 -> 0
A23: 5.5 | C23: COMMISSIONING OF CHEMICAL DOSING SYSTEM
A24: 5.5.1 | C24: Repairs of chemical dosing tanks complete with pipes and connections | D24: Sum | E24: 4 | F24: 14,562.00 | G24: 58,248.00 | H24: 10% | I24: 0% | J24: =H24-I24 -> 10% | K24: =F24*H24 -> 1,456.20 | L24: =F24*I24 -> 0 | M24: =F24*J24 -> 1,456.20
A25: 5.5.2 | C25: Replace of pipe tubes across the plant for chemcial dosing poInts | D25: Sum | E25: 4 | F25: 18,035.00 | G25: 72,140.00 | H25: 0% | I25: 0% | J25: =H25-I25 -> 0% | K25: =F25*H25 -> 0 | L25: =F25*I25 -> 0 | M25: =F25*J25 -> 0
A27: 5.6 | C27: COMMISSIONON OF TANKS
A28: 5.6.1 | C28: Test and Recondition the Backwash water tank, complete with repairs to tank structure, pipe fittings and linners | D28: Sum | E28: 1 | F28: 88,689.00 | G28: 88,689.00 | H28: 20% | I28: 0% | J28: =H28-I28 -> 20% | K28: =F28*H28 -> 17,737.80 | L28: =F28*I28 -> 0 | M28: =F28*J28 -> 17,737.80
A29: 5.6.2 | C29: Test and Recondition the Final water tank, complete with repairs to tank structure, pipe fittings and linners | D29: Sum | E29: 1 | F29: 88,689.00 | G29: 88,689.00 | H29: 20% | I29: 0% | J29: =H29-I29 -> 20% | K29: =F29*H29 -> 17,737.80 | L29: =F29*I29 -> 0 | M29: =F29*J29 -> 17,737.80
C31: Note : Bidder will be required to provide cost breakdown for all sums and actual quantities in each certificate
A32: Total Carried Forward Summary | G32: =SUM(G4:G31) -> 2,366,484.00 | K32: =SUM(K7:K31) -> 192,277.30 | L32: =SUM(L7:L31) -> 0 | M32: =SUM(M7:M31) -> 192,277.30

Sheet Civil & General SIte Works (hidden)
A1: REFURBISHMENT AND COMMISSINING OF A 10 ML/DAY PACKAGE PLANT.
A2: ITEM NO | B2: PAYMENT | C2: DESCRIPTION | D2: UNIT | E2: QTY | F2: RATE | G2: AMOUNT | H2: QTY TO DATE | I2: QTY PREVIOUS | J2: QTY CURRENT | K2: AMOUNT TO DATE | L2: AMOUNT PREVIOUS | M2: AMOUNT CURRENT
A5: 2 | C5: CIVIL - GENERAL SITE WORKS | H5: 0 | I5: 0 | J5: =H5-I5 -> 0 | K5: =F5*H5 -> 0 | L5: =F5*I5 -> 0 | M5: =F5*J5 -> 0
A6: 2.1 | C6: Repairs to concrete plinths around the entire plant - actuve flow settleing tank, back wash tank, filters and final water tank. | D6: Sum | E6: 1 | F6: R55,000.00 | G6: =E6*F6 -> R55,000.00 | H6: 20% | I6: 0% | J6: =H6-I6 -> 20% | K6: =F6*H6 -> 11,000.00 | L6: =F6*I6 -> 0 | M6: =F6*J6 -> 11,000.00
A7: 2.1.1 | C7: Sealing of concrete structures | D7: Sum | E7: 1 | F7: R35,000.00 | G7: =E7*F7 -> R35,000.00 | H7: 0% | I7: 0% | J7: =H7-I7 -> 0% | K7: =F7*H7 -> 0 | L7: =F7*I7 -> 0 | M7: =F7*J7 -> 0
J8: =H8-I8 -> 0 | K8: =F8*H8 -> 0 | L8: =F8*I8 -> 0 | M8: =F8*J8 -> 0
A9: 2.2 | C9: SECTION 2: CIVIL WORKS | J9: 0 | K9: 0 | L9: 0 | M9: 0
C10: SITE CLEARANCE | J10: 0 | K10: 0 | L10: 0 | M10: 0
A11: 2.2.1 | C11: Remove and grub and tree stumps: | D11: m² | E11: 1500 | F11: R12.00 | G11: =E11*F11 -> R18,000.00 | H11: 0% | I11: 0% | J11: =H11-I11 -> 0% | K11: =F11*H11 -> 0 | L11: =F11*I11 -> 0 | M11: =F11*J11 -> 0
A12: 2.2.1 | C12: Soil poisening of various sections along concrete structures | D12: Sum | E12: 1 | F12: R6,000.00 | G12: =E12*F12 -> R6,000.00 | H12: 0% | I12: 0% | J12: =H12-I12 -> 0% | K12: =F12*H12 -> 0 | L12: =F12*I12 -> 0 | M12: =F12*J12 -> 0
A14: 2.3 | C14: PAVEMENT
A15: 2.3.1 | C15: Extention of pavement around structures, complete with gabions and Stormwater channels. | D15: m² | E15: 266 | F15: R385.00 | G15: =E15*F15 -> R102,410.00 | H15: 0% | I15: 0% | J15: =H15-I15 -> 0% | K15: =F15*H15 -> 0 | L15: =F15*I15 -> 0 | M15: =F15*J15 -> 0
A17: 2.4 | C17: PLATFORMS AND WALKWAYS
A18: 2.4.1 | C18: Active Flow- settleing tanks : repainting and reconditioning of platforms and walk way. | D18: Sum | E18: 1 | F18: R355,662.00 | G18: =F18*E18 -> R355,662.00 | H18: 0% | I18: 0% | J18: =H18-I18 -> 0% | K18: =F18*H18 -> 0 | L18: =F18*I18 -> 0 | M18: =F18*J18 -> 0
A20: 2.5 | C20: CONTAINERS
A21: 2.5.1 | C21: Repair and renovation of the laboratory and office - complete with doors, windows and wall insultors | D21: Sum | E21: 1 | F21: R20,300.00 | G21: =F21*E21 -> R20,300.00 | H21: 0% | I21: 0% | J21: =H21-I21 -> 0% | K21: =F21*H21 -> 0 | L21: =F21*I21 -> 0 | M21: =F21*J21 -> 0
A22: 2.5.2 | C22: Repair of ablution facilities - complete with doors, windows and wall insultors | D22: Sum | E22: 1 | F22: R12,000.00 | G22: R12,000.00 | H22: 0% | I22: 0% | J22: 0% | K22: 0 | L22: 0 | M22: 0
A23: 2.5.3 | C23: Installation of air conditioners in lab/ office | D23: Sum | E23: 1 | F23: R25,000.00 | G23: R25,000.00 | H23: 0% | I23: 0% | J23: 0% | K23: 0 | L23: 0 | M23: 0
A24: 2.5.4 | C24: Instrallation of vantilation in the instrumentation container and air conditioner | D24: Sum | E24: 1 | F24: R65,000.00 | G24: R65,000.00 | H24: 0% | I24: 0% | J24: 0% | K24: 0 | L24: 0 | M24: 0
A25: 2.5.5 | C25: Instrallation of vantilation in the storage container and air conditioner | D25: Sum | E25: 1 | F25: R25,000.00 | G25: R25,000.00 | H25: 0% | I25: 0% | J25: 0% | K25: 0 | L25: 0 | M25: 0
A26: 2.5.6 | C26: MCC platform repairs | D26: Sum | E26: 1 | F26: R25,000.00 | G26: R25.00 | H26: 0% | I26: 0% | J26: 0% | K26: 0 | L26: 0 | M26: 0
A28: 2.6 | C28: PUMP STATION BUILDING
A29: 2.6.1 | C29: Repainting of internal walls | D29: m² | E29: 200 | F29: R255.00 | G29: R51,000.00 | H29: 0% | I29: 0% | J29: =H29-I29 -> 0% | K29: =F29*H29 -> 0 | L29: =F29*I29 -> 0 | M29: =F29*J29 -> 0
A30: 2.6.2 | C30: Repair of roof and sealing for any leaks | D30: m² | E30: 80 | F30: R105.00 | G30: R8,400.00 | H30: 0% | I30: 0% | J30: =H30-I30 -> 0% | K30: =F30*H30 -> 0 | L30: =F30*I30 -> 0 | M30: =F30*J30 -> 0
A31: 2.6.3 | C31: Repair of floors and aprons | D31: m² | E31: 80 | F31: R220.00 | G31: R17,600.00 | H31: 0% | I31: 0% | J31: =H31-I31 -> 0% | K31: =F31*H31 -> 0 | L31: =F31*I31 -> 0 | M31: =F31*J31 -> 0
A32: 2.6.4 | C32: Repair of cable racks on the MCC wall | D32: Sum | E32: 1 | F32: R28,963.00 | G32: R28,963.00 | H32: 0% | I32: 0% | J32: =H32-I32 -> 0% | K32: =F32*H32 -> 0 | L32: =F32*I32 -> 0 | M32: =F32*J32 -> 0
C34: Note : Bidder will be required to provide cost breakdown for all sums and actual quantities in each certificate
A35: Total Carried to Summary | G35: =SUM(G4:G34) -> R825,360.00 | K35: =SUM(K4:K34) -> R11,000.00 | L35: =SUM(L4:L34) -> R0.00 | M35: =SUM(M4:M34) -> R11,000.00

Sheet Eskom Power Supply & Electrical (hidden)
A1: REFURBISHMENT AND COMMISSINING OF A 10 ML/DAY PACKAGE PLANT.
A2: ITEM NO | B2: PAYMENT | C2: DESCRIPTION. Tender no.: REFURBISHMENT AND COMMISSINING OF A 10 ML/DAY PACKAGE PLANT. | D2: UNIT | E2: QTY | F2: RATE | G2: AMOUNT | H2: QTY TO DATE | I2: QTY PREVIOUS | J2: QTY CURRENT | K2: AMOUNT TO DATE | L2: AMOUNT PREVIOUS | M2: AMOUNT CURRENT
A4: 4.00 | C4: ESKOM CONNECTION & ELECTRICAL WORKS
A6: 4.1 | C6: Recondition, Test and Commission - Pole Number STR/THA 180/30 Transformer 1250kVA; complete trasnformer test and reporting by nominated manufacturer. Bidder to include Eskom connection for live connection. | D6: SUM | E6: 1 | F6: R425,869.00 | G6: =F6*E6 -> R425,869.00 | H6: 40% | I6: 0% | J6: =H6-I6 -> 40% | K6: =F6*H6 -> 170,347.60 | L6: =F6*I6 -> 0 | M6: =F6*J6 -> 170,347.60
J7: =H7-I7 -> 0 | K7: =F7*H7 -> 0 | L7: =F7*I7 -> 0 | M7: =F7*J7 -> 0
A8: 4.2 | C8: Installation of incomer cable from Transfromer to KIOSK, complete with tags, cable markers and lables | D8: SUM | E8: 1 | F8: R106,800.00 | G8: =F8*E8 -> R106,800.00 | H8: 100% | I8: 0% | J8: =H8-I8 -> 100% | K8: =F8*H8 -> 106,800.00 | L8: =F8*I8 -> 0 | M8: =F8*J8 -> 106,800.00
J9: 0 | K9: 0 | L9: 0 | M9: 0
A10: 4.3 | C10: Installation of incomer cable from Transfromer/Kiosk to MCC in the pump Station, complete with tags, cable markers and lables | D10: SUM | E10: 1 | F10: R111,523.00 | G10: R111,523.00 | H10: 50% | I10: 0% | J10: =H10-I10 -> 50% | K10: =F10*H10 -> 55,761.50 | L10: =F10*I10 -> 0 | M10: =F10*J10 -> 55,761.50
A12: 4.4 | C12: Schneider Electric masterpact NW 2000A ACB - fixed Pattern type | D12: No | E12: 1 | F12: R88,956.00 | G12: R88,956.00 | H12: 0% | I12: 0% | J12: =H12-I12 -> 0% | K12: =F12*H12 -> 0 | L12: =F12*I12 -> 0 | M12: =F12*J12 -> 0
A13: 4.5 | C13: Busbar retrofit and installation of CB - Labour and materials | D13: No | E13: 1 | F13: R35,600.00 | G13: R35,600.00 | H13: 0% | I13: 0% | J13: 0% | K13: 0 | L13: 0 | M13: 0
A14: 4.6 | C14: MVAA 21D1BA0797A - Relats for Bucholtz and temperature interference | D14: No | E14: 1 | F14: R42,356.00 | G14: R42,356.00 | H14: 0% | I14: 0% | J14: 0% | K14: 0 | L14: 0 | M14: 0
A15: 4.7 | C15: Lightning protection | D15: No | E15: 1 | F15: R12,300.00 | G15: R12,300.00 | H15: 0% | I15: 0% | J15: 0% | K15: 0 | L15: 0 | M15: 0
A16: 4.8 | C16: Installation of MVAA relays, cocntrol between TRF and MCC | D16: No | E16: 2 | F16: R16,503.00 | G16: R33,006.00 | H16: 0% | I16: 0% | J16: 0% | K16: 0 | L16: 0 | M16: 0
A17: 4.9 | C17: Supply & iinstallation of power meter, complete with CCTs and fuse protection PM 5100 | D17: No | E17: 1 | F17: R38,956.00 | G17: R38,956.00 | H17: 0% | I17: 0% | J17: 0% | K17: 0 | L17: 0 | M17: 0
A18: 4.10 | C18: Replace MCC with Softstarters for both the high lift pumps 350kW, complete with cables | D18: No | E18: 2 | F18: R446,563.00 | G18: R893,126.00 | H18: 0% | I18: 0% | J18: 0% | K18: 0 | L18: 0 | M18: 0
A20: 4.11 | C20: SCADA and PLC for both Automation and manual operation | D20: Sum | E20: 1 | F20: R167,289.00 | G20: R167,289.00 | H20: 0% | I20: 0% | J20: =H20-I20 -> 0% | K20: =F20*H20 -> 0 | L20: =F20*I20 -> 0 | M20: =F20*J20 -> 0
A21: 4.12 | C21: Programming of the entire plant for ease of monitoring and control by instrumentation Technician | D21: Sum | E21: 1 | F21: R88,956.00 | G21: R88,956.00 | H21: 0% | I21: 0% | J21: =H21-I21 -> 0% | K21: =F21*H21 -> 0 | L21: =F21*I21 -> 0 | M21: =F21*J21 -> 0
A22: 4.13 | C22: Power cables and communciation cables for actuators and sensors | D22: Sum | E22: 1 | F22: R223,668.00 | G22: R223,668.00 | H22: 0% | I22: 0% | J22: =H22-I22 -> 0% | K22: =F22*H22 -> 0 | L22: =F22*I22 -> 0 | M22: =F22*J22 -> 0
A24: 4.14 | C24: Repiars and Reconditioniong of the electrical control container | D24: Sum | E24: 1 | F24: R18,956.00 | G24: R18,956.00 | H24: 10% | I24: 0% | J24: =H24-I24 -> 10% | K24: =F24*H24 -> 1,895.60 | L24: =F24*I24 -> 0 | M24: =F24*J24 -> 1,895.60
A25: 4.15 | C25: Replacement of level sensors and instruments | D25: Sum | E25: 1 | F25: R88,956.00 | G25: R88,956.00 | H25: 0% | I25: 0% | J25: =H25-I25 -> 0% | K25: =F25*H25 -> 0 | L25: =F25*I25 -> 0 | M25: =F25*J25 -> 0
A26: 4.16 | C26: Aerial Lighting around the site and lights in each container and pump station | D26: Sum | E26: 1 | F26: R28,956.00 | G26: R28,956.00 | H26: 20% | I26: 0% | J26: =H26-I26 -> 20% | K26: =F26*H26 -> 5,791.20 | L26: =F26*I26 -> 0 | M26: =F26*J26 -> 5,791.20
C28: Note : Bidder will be required to provide cost breakdown for all sums and actual quantities in each certificate
A29: Total Carried Forward Summary | G29: =SUM(G4:G28) -> R2,405,273.00 | K29: =SUM(K4:K28) -> 340,595.90 | L29: =SUM(L4:L28) -> 0 | M29: =SUM(M4:M28) -> 340,595.90
